Cogmind - Beta 12 @@@ ROGUE MODE // 2023.03.21 @ 17:35:22 Player: ZLD1 Result: Destroyed by S-27 Virus with Autogun Performance ------------- Evolutions (4) 2000 Regions Visited (8) 1600 Robots Destroyed (71) 355 Value Destroyed (2180) 2180 Prototype IDs (3) 60 Alien Tech Used (0) 0 Bonus (48) 48 TOTAL SCORE: 6243 Bonus ------- High Alert Combat Kills 48 Cogmind --------- Core Integrity 0/850 Matter 298/300 Energy 60/100 System Corruption 2% Temperature Cool (0) Movement Core (50) Location -6/Lower Caves Parts ------- > --- POWER (3) -------- (None) > --- PROPULSION (5) --- Combat Airjet > --- UTILITY (4) ------ Visual Processing Unit > --- WEAPON (3) ------- Katana > --- INVENTORY (5) ---- Carbon-fiber Leg Improved Arc Projector Improved Arc Projector Power Maul Peak State ------------ > --- POWER ------------ Improved Deuterium Engine > --- PROPULSION ------- Carbon-fiber Leg Improved Gravmag System Combat Airjet Gravmag Array > --- UTILITY ---------- Power Amplifier Visual Processing Unit Cloaking Device Improved Shock Absorption System > --- WEAPON ----------- Improved Arc Projector Power Maul Power Maul > --- INVENTORY -------- Arc Projector Improved Arc Projector Improved Proton Missile Launcher Power Maul Katana [Rating: 61] Favorites ----------- Power Light Ion Engine Engine Light Ion Engine Power Core Micro Nuclear Core Propulsion Aluminum Leg Leg Aluminum Leg Hover Unit Combat Airjet Flight Unit Flight Unit Utility Visual Processing Unit Device Reaction Control System Storage Small Storage Unit Processor Visual Processing Unit Protection Improved Medium Armor Plating Weapon Power Maul Energy Gun EM Pulse Gun Ballistic Gun Flak Gun Ballistic Cannon Flak Cannon Launcher Improved Proton Missile Launcher Impact Weapon Power Maul Slashing Weapon Katana Build | -11 -10 -9 -8 -7 -6 -6 -6 -6 ------- Run | Jun Mat Mat Mat Fac Fac Was Fac Low Slots Evolved 8 | . . 2 2 2 2 . . . Power 2 | . . . 1 1 . . . . Propulsion 3 | . . 2 . . 1 . . . Utility 2 | . . . 1 1 . . . . Weapon 1 | . . . . . 1 . . . Parts Attached 99 | 5 3 14 13 26 11 . 21 6 Power 19 | 1 . 2 6 5 3 . 2 . Engine 16 | 1 . 2 6 4 1 . 2 . Core 3 | . . . . 1 2 . . . Reactor . | . . . . . . . . . Propulsion 32 | 2 . 4 4 12 3 . 6 1 Treads . | . . . . . . . . . Leg 10 | 2 . 3 . . 2 . 3 . Wheel . | . . . . . . . . . Hover 8 | . . . . 3 1 . 3 1 Flight 14 | . . 1 4 9 . . . . Utility 14 | . 2 1 1 2 3 . 4 1 Device 11 | . 1 . 1 2 3 . 3 1 Storage 1 | . 1 . . . . . . . Processor 1 | . . 1 . . . . . . Hackware . | . . . . . . . . . Protection 1 | . . . . . . . 1 . Artifact . | . . . . . . . . . Weapon 34 | 2 1 7 2 7 2 . 9 4 Energy Gun 11 | 1 1 4 . 1 . . 2 2 Energy Cannon . | . . . . . . . . . Ballistic Gun 3 | 1 . 1 . . . . 1 . Ballistic Cannon 2 | . . . 1 1 . . . . Launcher 1 | . . . . . . . . 1 Special Weapon . | . . . . . . . . . Impact Weapon 11 | . . 2 1 3 1 . 4 . Slashing Weapon 6 | . . . . 2 1 . 2 1 Piercing Weapon . | . . . . . . . . . Special Melee Weapon . | . . . . . . . . . Unidentified Prototypes 3 | . . 1 . 2 . . . . Parts Lost 51 | . . 8 4 16 . . 13 10 Power 10 | . . 1 2 2 . . 4 1 Propulsion 19 | . . 3 2 8 . . 3 3 Utility 11 | . . 1 . 3 . . 4 3 Weapon 11 | . . 3 . 3 . . 2 3 Highest Loss Streak 12 | . . 4 3 12 . . 4 10 To Critical Strikes . | . . . . . . . . . Average Slot Usage (%) 67 | . 74 67 53 74 52 80 65 72 Engine 7 | . 14 10 8 6 5 6 3 5 Core 1 | . . . . 1 3 13 4 . Leg 10 | . 28 16 3 . 10 13 14 2 Hover 3 | . . . . . . 6 4 21 Flight 5 | . . 2 4 23 . . . . Device 9 | . 2 1 3 13 16 20 12 16 Storage 5 | . . 11 9 6 . . . . Processor 5 | . . 4 9 7 6 6 6 6 Energy Gun 3 | . 14 8 . . . . . 3 Ballistic Gun 1 | . 13 . . . . . 2 . Impact Weapon 9 | . . 12 15 7 2 6 12 9 Slashing Weapon 1 | . . . . 3 5 6 1 3 Naked Turns . | . . . . . . . . . Heaviest Build 32 | 9 16 18 18 21 22 22 32 28 Greatest Support 51 | 20 20 30 22 24 45 45 50 51 Greatest Overweight (x) 5 | . . 1 5 2 . . 1 4 Average Overweight (x) . | . . . 1 . . . . . Largest Inventory Capacity 8 | 5 8 8 8 8 5 5 5 5 Average Capacity 6 | 5 5 8 8 7 5 5 5 5 Most Carried 8 | 4 5 8 8 8 5 4 5 5 Average Carried 5 | 1 2 7 7 7 4 4 4 4 Final Capacity 8 | 5 8 8 8 5 5 5 5 5 Final Carried 8 | 2 5 8 8 5 4 4 5 4 Class Distribution -------------------- 82% | Mutant 7% | Scavenger-Sprinter 5% | Sprinter Dominant Class ---------------- Mutant | -10/Materials Mutant | -9/Materials Mutant | -8/Materials Scavenger-Sprinter | -7/Factory Mutant | -6/Factory Mutant | -6/Waste Mutant | -6/Factory Mutant | -6/Lower Caves Resources | -11 -10 -9 -8 -7 -6 -6 -6 -6 ----------- Run | Jun Mat Mat Mat Fac Fac Was Fac Low Matter Collected 1283 | 250 18 160 102 268 . . 397 88 Remotely 50 | . . 50 . . . . . . Salvage Created 2363 | . 57 651 228 590 50 . 787 . Parts 97 | . 1 34 18 31 2 . 11 . Haulers Intercepted . | . . . . . . . . . Recyclers Shooed 2 | . . . . 2 . . . . Parts Field Recycled . | . . . . . . . . . Retrieved Matter . | . . . . . . . . . Parts Self-Destructed 5 | . . . . . . . . 5 Prevented . | . . . . . . . . . Kills | -11 -10 -9 -8 -7 -6 -6 -6 -6 ------- Run | Jun Mat Mat Mat Fac Fac Was Fac Low Combat Hostiles Destroyed 61 | . 3 15 9 18 1 . 15 . Melee 27 | . . 4 7 11 1 . 4 . Guns 14 | . 3 4 . . . . 7 . AOE 1 | . . 1 . . . . . . Classes Destroyed 12 | . 1 6 . 1 1 . 3 . Worker 5 | . . 1 1 2 . . 1 . Builder 1 | . . 1 . . . . . . Recycler 1 | . . 1 . . . . . . Operator 1 | . . . . . . . 1 . Watcher 2 | . . 2 . . . . . . Swarmer 24 | . 3 6 6 9 . . . . Cutter 3 | . . . . 3 . . . . Grunt 17 | . . 3 . 4 . . 10 . Duelist 1 | . . . . . . . 1 . Sentry 13 | . . 6 3 2 . . 2 . Hunter 1 | . . . . . . . 1 . Programmer 2 | . . . . . 1 . 1 . Best Kill Streak 6 | . 3 5 5 4 1 . 6 . Combat Bots Only 6 | . 3 3 4 4 1 . 6 . Max Kills in Single Turn 1 | . 1 1 1 1 1 . 1 . Gunslinging . | . . . . . . . . . Exploded 1 | . . 1 . . . . . . Melee 1 | . . 1 1 1 1 . 1 . Uniques/NPCs Destroyed . | . . . . . . . . . Combat | -11 -10 -9 -8 -7 -6 -6 -6 -6 -------- Run | Jun Mat Mat Mat Fac Fac Was Fac Low Damage Taken 6620 | . 114 906 479 1659 92 . 2314 1056 Core 1832 | . 39 193 180 563 15 . 507 335 Absorbed by Shields . | . . . . . . . . . Core Remaining (%) 64 | 100 84 51 67 19 . . . . Volleys Fired 84 | . 6 14 . . . . 52 12 Largest 2 | . 2 2 . . . . 1 1 Hottest 85 | . 60 85 . . . . 55 70 Shots Fired 97 | . 12 20 . . . . 52 13 Gun 97 | . 12 20 . . . . 52 13 Cannon . | . . . . . . . . . Launcher . | . . . . . . . . . Special . | . . . . . . . . . Kinetic 45 | . 6 . . . . . 39 . Thermal . | . . . . . . . . . Explosive . | . . . . . . . . . Electromagnetic 52 | . 6 20 . . . . 13 13 Robot Hit Streak 14 | . 4 14 . . . . 12 3 Robot Miss Streak 5 | . 1 1 . . . . 5 2 Penetration Max . | . . . . . . . . . Secondary Targets 2 | . 2 . . . . . . . Max Gunslinging Chain 1 | . 1 . . . . . . . Shots Hit Robots 203 | . 8 40 20 46 1 . 80 8 Core Hits 107 | . 3 15 6 15 1 . 65 2 Critical Kills 4 | . . 1 1 2 . . . . Critical Parts Destroyed 16 | . . 2 2 6 . . 6 . Critical Strikes 26 | . . 3 4 12 . . 7 . Smash 22 | . . 3 4 9 . . 6 . Sever 4 | . . . . 3 . . 1 . Melee Attacks 156 | . . 29 30 64 1 . 32 . Impact 121 | . . 29 30 34 . . 28 . Slashing 35 | . . . . 30 1 . 4 . Piercing . | . . . . . . . . . Sneak Attacks 13 | . . 3 2 6 . . 2 . Combat Hostiles 2 | . . 1 . 1 . . . . Follow-up Attacks 25 | . . 2 9 5 . . 9 . Damage Inflicted 6307 | . 93 1278 872 1698 41 . 2240 85 Guns 1319 | . 93 222 . . . . 919 85 Cannons . | . . . . . . . . . Explosions 183 | . . 123 . . . . 60 . Melee 4796 | . . 933 872 1696 36 . 1259 . Ramming 9 | . . . . 2 5 . 2 . Kinetic 823 | . 37 . . . . . 786 . Thermal 183 | . . 123 . . . . 60 . Explosive . | . . . . . . . . . Electromagnetic 496 | . 56 222 . . . . 133 85 Impact 4004 | . . 933 872 1061 . . 1138 . Slashing 792 | . . . . 635 36 . 121 . Piercing . | . . . . . . . . . Highest Corruption 4 | . . . . 4 . . 2 2 Average Corruption 2 | . . . . 2 . . 1 2 Corruption Purged . | . . . . . . . . . Corruption Blocked . | . . . . . . . . . Effects 9 | . . . . . . . 2 7 Message Errors 5 | . . . . . . . 2 3 Matter Fused 1 | . . . . . . . . 1 Heat Flow Errors 1 | . . . . . . . . 1 Data Loss (major) 1 | . . . . . . . . 1 Misfires 1 | . . . . . . . . 1 Overload Shots . | . . . . . . . . . Overflow Damage 1310 | . . 311 229 362 . . 408 . Projectiles . | . . . . . . . . . Explosions 3 | . . 3 . . . . . . Melee 1307 | . . 308 229 362 . . 408 . Knockbacks 12 | . . 6 . 3 . . 3 . Impact 12 | . . 6 . 3 . . 3 . Kinetic . | . . . . . . . . . Secondary . | . . . . . . . . . Self-Inflicted Damage 124 | . . 61 . 1 2 . 60 . Shots 3 | . . 2 . . . . 1 . Rammed 2 | . . . . 1 1 . . . Targets Rammed 3 | . . . . 1 1 . 1 . Kicked 1 | . . . . . . . 1 . Crushed . | . . . . . . . . . Highest Temperature 168 | . . 59 4 20 . . 20 168 Average Temperature 47 | . . 33 3 13 . . 5 88 Received Heat Transfer 1452 | . . 222 135 396 . . 699 . Siege Activations . | . . . . . . . . . Robots Corrupted 2 | . . 1 . . . . 1 . Combat Hostiles 2 | . . 1 . . . . 1 . Parts Fried 24 | . . 7 2 4 . . 11 . Impact Corruptions 55 | . . 13 9 17 . . 16 . Robots Melted . | . . . . . . . . . Combat Hostiles . | . . . . . . . . . Parts Melted . | . . . . . . . . . Heat Transferred 250 | . . 200 . . . . 50 . Parts Sabotaged . | . . . . . . . . . Parts Stolen . | . . . . . . . . . Parts Stripped . | . . . . . . . . . Power Chain Reactions 3 | . . 2 . . . . 1 . Missiles Intercepted . | . . . . . . . . . Alert | -11 -10 -9 -8 -7 -6 -6 -6 -6 ------- Run | Jun Mat Mat Mat Fac Fac Was Fac Low Peak Influence 646 | . 85 221 252 646 210 15 285 . Initial 210 | . . 35 37 121 210 14 10 . Average 151 | . 27 93 116 338 181 11 108 . Maximum Alert Level 2 | . . 1 1 2 1 . 1 . Low Security (%) 66 | 100 100 87 83 12 16 100 95 . Level 1 26 | . . 12 16 54 83 . 4 . Level 2 6 | . . . . 32 . . . . Level 3 . | . . . . . . . . . Level 4 . | . . . . . . . . . Level 5 . | . . . . . . . . . High Security . | . . . . . . . . . Max Security . | . . . . . . . . . Squads Dispatched 9 | . . 1 . 5 1 . 2 . Investigation 2 | . . . . 1 . . 1 . Extermination 2 | . . . . 1 1 . . . Reinforcement 5 | . . 1 . 3 . . 1 . Assault . | . . . . . . . . . Garrison . | . . . . . . . . . Intercept . | . . . . . . . . . Searches Triggered . | . . . . . . . . . Construction Impeded . | . . . . . . . . . Haulers Reinforced . | . . . . . . . . . Active Scanning Responses . | . . . . . . . . . Cargo Convoy Interrupts . | . . . . . . . . . Stealth | -11 -10 -9 -8 -7 -6 -6 -6 -6 --------- Run | Jun Mat Mat Mat Fac Fac Was Fac Low Distress Signals 3 | . . 1 2 . . . . . Communications Jammed . | . . . . . . . . . Distress Signals . | . . . . . . . . . Times Spotted 122 | . 4 25 14 45 3 4 18 9 Peak Tracking Total 10 | . 3 5 6 10 4 3 4 4 Tactical Retreats 13 | . . 1 . 6 . 2 1 3 Traps | -11 -10 -9 -8 -7 -6 -6 -6 -6 ------- Run | Jun Mat Mat Mat Fac Fac Was Fac Low Traps Triggered 8 | . . 1 . 5 1 . 1 . Indirectly . | . . . . . . . . . Trap Hack Attempts . | . . . . . . . . . Triggered . | . . . . . . . . . Disarmed . | . . . . . . . . . Reprogrammed . | . . . . . . . . . Reused . | . . . . . . . . . Traps Extracted . | . . . . . . . . . Installed . | . . . . . . . . . Triggered 1 | . . . . . . . . 1 Machines | -11 -10 -9 -8 -7 -6 -6 -6 -6 ---------- Run | Jun Mat Mat Mat Fac Fac Was Fac Low Machines Disabled . | . . . . . . . . . Max in Single Turn . | . . . . . . . . . Machines Repaired . | . . . . . . . . . Machines Sabotaged . | . . . . . . . . . Overloaded Fab Kills . | . . . . . . . . . Hacking | -11 -10 -9 -8 -7 -6 -6 -6 -6 --------- Run | Jun Mat Mat Mat Fac Fac Was Fac Low Machines Accessed 2 | . . . . . 1 . . 1 Terminals . | . . . . . . . . . Fabricators 1 | . . . . . 1 . . . Repair Stations . | . . . . . . . . . Recycling Units . | . . . . . . . . . Scanalyzers . | . . . . . . . . . Garrison Access . | . . . . . . . . . Total Hacks 2 | . . . . . 1 . . 1 Successful 2 | . . . . . 1 . . 1 Failed . | . . . . . . . . . Catastrophic . | . . . . . . . . . Database Lockouts . | . . . . . . . . . Manual . | . . . . . . . . . Terminals . | . . . . . . . . . Fabricators 1 | . . . . . 1 . . . Repair Stations . | . . . . . . . . . Recycling Units . | . . . . . . . . . Scanalyzers . | . . . . . . . . . Garrison Access . | . . . . . . . . . Terminal Hacks 1 | . . . . . . . . 1 Open Door 1 | . . . . . . . . 1 Fabricator Hacks 1 | . . . . . 1 . . . Network Status 1 | . . . . . 1 . . . Repair Station Hacks . | . . . . . . . . . Recycling Unit Hacks . | . . . . . . . . . Scanalyzer . | . . . . . . . . . Garrison Access Hacks . | . . . . . . . . . Unauthorized Hacks . | . . . . . . . . . Terminals . | . . . . . . . . . Fabricators . | . . . . . . . . . Repair Stations . | . . . . . . . . . Recycling Units . | . . . . . . . . . Scanalyzers . | . . . . . . . . . Garrison Access . | . . . . . . . . . Data Cores Recovered . | . . . . . . . . . Used . | . . . . . . . . . Hacking Detections . | . . . . . . . . . Full Trace Events . | . . . . . . . . . Feedback Events . | . . . . . . . . . Feedback Blocked . | . . . . . . . . . Robot Schematics Acquired . | . . . . . . . . . Robots Built . | . . . . . . . . . Authchips . | . . . . . . . . . Time . | . . . . . . . . . Total Robot Build Rating . | . . . . . . . . . Part Schematics Acquired . | . . . . . . . . . Parts Built . | . . . . . . . . . Authchips . | . . . . . . . . . Time . | . . . . . . . . . Total Part Build Rating . | . . . . . . . . . Parts Repaired . | . . . . . . . . . Time . | . . . . . . . . . Parts Recycled . | . . . . . . . . . Recycled Matter . | . . . . . . . . . Retrieved Matter . | . . . . . . . . . Retrieved Components . | . . . . . . . . . Parts Scanalyzed . | . . . . . . . . . Part Schematics Acquired . | . . . . . . . . . Parts Damaged . | . . . . . . . . . Bothacking | -11 -10 -9 -8 -7 -6 -6 -6 -6 ------------ Run | Jun Mat Mat Mat Fac Fac Was Fac Low Used RIF Installer . | . . . . . . . . . Robots Hacked . | . . . . . . . . . Non-combat . | . . . . . . . . . Combat . | . . . . . . . . . Robot Hacks Applied . | . . . . . . . . . Relay Couplers Released . | . . . . . . . . . Fabnet Peak Effective % . | . . . . . . . . . Robots Rewired . | . . . . . . . . . Allies Hacked . | . . . . . . . . . Hacks Repelled . | . . . . . . . . . Allies | -11 -10 -9 -8 -7 -6 -6 -6 -6 -------- Run | Jun Mat Mat Mat Fac Fac Was Fac Low Total Allies 1 | . . . . . . 1 . . Largest Group 1 | . . . . . . 1 . . Highest-Rated Group 31 | . . . . . . 31 . . Highest-Rated Ally 31 | . . . . . . 31 . . Total Orders 2 | . . . . . . . 2 . EXPLORE 1 | . . . . . . . 1 . RETURN 1 | . . . . . . . 1 . Ally Attacks 6 | . . . . . . 6 . . Total Damage 104 | . . . . . . 104 . . Kills . | . . . . . . . . . Allies Corrupted . | . . . . . . . . . Allies Melted . | . . . . . . . . . Intel | -11 -10 -9 -8 -7 -6 -6 -6 -6 ------- Run | Jun Mat Mat Mat Fac Fac Was Fac Low Robot Analysis Total . | . . . . . . . . . Derelict Logs Recovered . | . . . . . . . . . Drone Launches 2 | . . . . . . . 2 . Drone Recoveries 1 | . . . . . . . 1 . Exploration | -11 -10 -9 -8 -7 -6 -6 -6 -6 ------------- Run | Jun Mat Mat Mat Fac Fac Was Fac Low Turns Passed 4765 | 57 279 1328 353 879 479 100 790 500 Spaces Moved 4309 | 49 182 722 187 1568 415 84 367 735 Core 309 | 19 . . 93 84 89 . . 24 Treads . | . . . . . . . . . Legs 1722 | 30 182 722 29 . 326 84 349 . Wheels . | . . . . . . . . . Hover 795 | . . . . 66 . . 18 711 Flight 1483 | . . . 65 1418 . . . . Fastest Speed 26 | 50 120 120 31 26 50 120 68 50 Average Speed 84 | 92 120 151 122 37 104 120 122 62 Slowest Speed 300 | 120 120 190 300 150 120 120 190 250 Overloaded Moves . | . . . . . . . . . Propulsion Burnouts . | . . . . . . . . . Robots Hopped 6 | . . . 1 5 . . . . Cave-ins Triggered . | . . . . . . . . . Exploration Rate (%) 35 | 3 30 48 20 47 14 72 9 76 Regions Visited 8 Branch Regions 1 Pre-discovered Areas . | . . . . . . . . . Known Exits Taken . | . . . . . . . . . Unknown Exits Taken 6 | 1 1 1 1 1 . . 1 . Scrap Searched 3 | . . . . . . . . 3 Spaces Dug . | . . . . . . . . . Terrain Destroyed 13 | . . 10 . . . . 3 . Melee . | . . . . . . . . . Projectile . | . . . . . . . . . AOE 13 | . . 10 . . . . 3 . Terrain Rammed . | . . . . . . . . . Walls Destroyed . | . . . . . . . . . Machines Disabled . | . . . . . . . . . Actions | -11 -10 -9 -8 -7 -6 -6 -6 -6 --------- Run | Jun Mat Mat Mat Fac Fac Was Fac Low Total 5103 | 60 231 890 265 1752 456 83 599 767 Wait 370 | . 32 97 34 56 21 . 125 5 Move 4290 | 48 181 721 184 1557 415 83 366 735 Hop 6 | . . . 1 5 . . . . Pick Up 57 | 7 7 13 4 9 7 . 6 4 Fast Attach 48 | . . 5 10 18 3 . 9 3 Attach 43 | 5 3 6 3 8 8 . 8 2 Detach 11 | . . . 2 6 . . 3 . Swap 8 | . . 3 . . . . 4 1 Drop 38 | . 2 6 6 17 . . 2 5 Fire 84 | . 6 14 . . . . 52 12 Melee 127 | . . 25 21 57 1 . 23 . Ram 2 | . . . . 1 1 . . . Kick 1 | . . . . . . . 1 . Crush . | . . . . . . . . . Escape Stasis 18 | . . . . 18 . . . . Rewire . | . . . . . . . . . Trap . | . . . . . . . . . Miscellaneous . | . . . . . . . . . Route ------- -11/Junkyard -10/Materials -9/Materials -8/Materials -7/Factory -6/Factory -6/Waste -6/Factory -6/Lower Caves History --------- Turn | Location | Event 5 | -11/Junkyard | Discovered new exit (range 16) 58 | -11/Junkyard | Entered Materials 292 | -10/Materials | Discovered new exit (range 16) 301 | -10/Materials | Build established: Mutant 337 | -10/Materials | Entered another Materials area 337 | -9/Materials | Evolved 2 slots: Propulsion x2 612 | -9/Materials | Lost 4 parts (1n3w) 1614 | -9/Materials | Discovered new exit (range 16) 1665 | -9/Materials | Entered another Materials area 1665 | -8/Materials | Evolved 2 slots: Power x1, Utility x1 1770 | -8/Materials | Lost 3 parts (1p2n) 2015 | -8/Materials | Discovered new exit (range 9) 2018 | -8/Materials | Entered Factory 2018 | -7/Factory | Evolved 2 slots: Power x1, Utility x1 2267 | -7/Factory | Build established: Scavenger-Sprinter 2814 | -7/Factory | Core integrity fell below 50% 2873 | -7/Factory | Lost 12 parts (1p6n3u2w) 2881 | -7/Factory | Core integrity fell below 20% 2890 | -7/Factory | Discovered new exit (range 9) 2897 | -7/Factory | Entered another Factory area 2897 | -6/Factory | Evolved 2 slots: Propulsion x1, Weapon x1 3107 | -6/Factory | Build established: Mutant 3376 | -6/Factory | Sucked down chute 3376 | -6/Factory | Entered Waste 3377 | -6/Waste | Met a frightened Derelict 3385 | -6/Waste | Spotted C-40 Crusher 3400 | -6/Waste | Spotted C-40 Crusher 3408 | -6/Waste | Spotted C-40 Crusher 3418 | -6/Waste | Spotted C-40 Crusher 3446 | -6/Waste | Spotted C-40 Crusher 3458 | -6/Waste | Discovered new exit (range 14) 3476 | -6/Waste | Entered Factory 3664 | -6/Factory | Lost 3 parts (1p1n1u) 3864 | -6/Factory | Core integrity fell below 50% 3874 | -6/Factory | Lost 4 parts (2p2u) 3998 | -6/Factory | Discovered new exit (range 44) 4266 | -6/Factory | Entered Lower Caves 4749 | -6/Lower Caves | Core integrity fell below 20% 4766 | -6/Lower Caves | Destroyed by S-27 Virus with Autogun Last Messages --------------- 04540_ Found Mak. Transmission Jammer. 04540_ Found 19 Matter. 04541_ Acquired 19 matter. 04573_ Acquired 5 matter. 04609_ H8-LE6(k) breaks down the debris. 04644_ AWH3&NXFLVFPXRVNK2YTRRAIABPF3I2#D71MOJ 04692_ System corrupted: Substantial component data lost. 04700_ Imp. Gravmag System destroyed. 04709_ System corrupted: FCS attempts to trigger Imp. Arc Projector. 04709_ System corrupted: Imp. Arc Projector misfires. 04720_ Imp. Deuterium Engine destroyed. 04722_ Imp. Shock Absorption System destroyed. 04741_ Power Amplifier destroyed. 04743_ Gravmag System destroyed. 04748_ Imp. Proton Missile Launcher destroyed. 04750_ Gravmag Array destroyed. 04751_ Cloaking Device destroyed. 04755_ Arc Thrower destroyed. 04761_ Power Maul destroyed. Map ----- +----------------------------------------------------+ | ?????????????????????????????????????????????????? | | ?????????????????????????????????????????????????? | | ?????????????????????????????????????????????????? | | ?????????????????????????????????????????????????? | | ?????????????????????????????????????????????????? | | ?????????????????????????????????????????????????? | | ?????????????????????????????????????????????????? | | ?????????????????????????????????????????????????? | | ?????????????????????????????????????????????????? | | ?????????????????????????????????????????????????? | | ?????????????????????????????????????????????????? | | ?????????????????????????????????????????????????? | | ?????????????????????????????????????????????????? | | ???????????????????????????????###????????####???? | | ???????####???????????????????## ##????#### #???? | | ?????### ##??????????????????# #??### #????? | | ????## #??????????????????# #??# #????? | | ????# #??????###????????## #??# #????# | | ????## ##?????# ####?##### #?## #????# | | ?????#### #?????# ### ### ##???# | | ???????## ##???## ##??# | | ???????# ##### s #### | | ???????## ## ## ## ## | | ????????### #### ## ###### #? | | ??????????## ###??# # #???#####? | | ???????????## #???## @ ####### #????????? | | ???????????## ##### ##?????### #??####### | | #####?????# ### ##????????## #?## # | | ? #?????# #?## #??????????# ### | | ??# #?????# ##?## #??????????# ## | | ??# #?????# ##?## #??????????# # # | | ??# #?????## #?## #??????????# # # | | ??# #?????## #### #??????????# # # | | ??# #?##### #### #?????????## | | ### ### ### #?????????# ## | | # #?# ##????#??## ## | | # #?## # ##?? #?## ## | | ## ### #??## ## % ### ### #### | | ?##??## ##??###?## ##??## | | ??????### ##??????##% ######## ##????## | | ????????## #??????# #??????# #??????# | | ?????????# #??????# #??????# #??????? | | ?????????#########??????# #????#######???### | | ????????????????????????### #####???## ### ##??# | | ??????????????????????????# #????#### ##?# | | ??????????????????????????# #????# % #?? | | ???????????????????????#### ###### #???# | | ???????????????????????# % #??## | | ???????????????????????#% %% % %#### | | ???????????????????????# %###### % | +----------------------------------------------------+ Best States ------------- Heat Dissipation 37 Energy Generation 30 Energy Capacity 290 Matter Stores 300 Matter Capacity 300 Sight Range 18 Terrain Scan Density 10 Jamming Range 12 Power Amplification 20 Additional Mass Support 9 Armor Coverage 225 Resistance: EX 50 Melee Speed Boost 20 Evasion (%) 72 Item Schematics ----------------- None Robot Schematics ------------------ None Fabricated ------------ Nothing Alien Tech Used ----------------- None Achievements -------------- Deadly Force Challenges ------------ None Game ------ Seed DamperAblativeSource Manual? 0 Play Time 00:56:34 Cumulative 14.5 hours Start 2023.03.21 @ 16:22:45 End 2023.03.21 @ 17:35:22 Sessions 1 Manual Loads 0 Difficulty Rogue Special Mode None Game No. 31 Rogue 31 Adventurer 0 Explorer 0 Win Type - Total 0 Types 0/0/0/0/0/0/0/0/0 Lore% 17 Gallery% 23 Achievement% 16 Wizard Run 0 Options --------- ASCII 0 Keyboard 0 Movement Mouse Keybinds 0 Fullscreen 1 Font 24/Smallcaps Map View 64x52 Tactical HUD 1 Map Filters NONE Filters NONE Steam 1 RUN: 762ae2f0-15c3-49e0-80ea-0d2cc369b7dd